bitfinex-derivatives/quotes_ETHF0:USTF0_20250403
["timestamp","ask_amount","ask_price","bid_price","bid_amount"]
[1743689854120,3.4824,1773.9,1773.5,6.02758]
[1743689854318,3.4824,1773.9,1773.5,3.2946]
[1743689854319,9.50937,1773.9,1773.5,3.2946]
[1743689854523,2.8196,1773.7,1773.2,1.12804]
[1743689854725,1.1281,1773.2,1773.1,3.2078]
[1743689855229,3.3658,1773.3,1773.2,1.1281]
[1743689855429,2.8947,1773.8,1773.7,1.12778]
[1743689855731,3.2078,1774.1,1773.6,3.2078]
[1743689855932,1.12761,1774.0,1773.9,1.1276]
[1743689856123,1.12766,1773.9,1773.8,4.33548]
[1743689856431,1.12766,1773.9,1773.8,1.13617744]
[1743689856626,1.12766,1773.9,1773.8,0.00847744]
[1743689857231,1.12762,1774.0,1773.9,1.12762]
[1743689857427,3.3658,1774.0,1773.9,1.12762]
[1743689857828,3.3658,1774.0,1773.8,4.34393744]
[1743689858128,3.3658,1774.0,1773.8,3.21627744]
[1743689858327,1.12755,1774.1,1774.0,1.12756]
[1743689858519,1.12755,1774.1,1773.9,3.2721]
[1743689858520,3.21,1774.1,1773.9,3.2721]
[1743689858722,6.22745,1774.3,1773.9,6.09125]
[1743689858928,1.12738,1774.4,1774.0,2.81898]
[1743689859134,3.21,1774.3,1774.2,1.12741]
[1743689859628,1.12726,1774.6,1774.5,1.12728]
[1743689859828,2.81804,1774.6,1774.2,1.12741]
[1743689860031,1.1274,1774.3,1774.2,4.39951]
[1743689860332,3.21,1774.5,1774.4,1.12734]
[1743689860628,13.96262,1774.9,1774.3,1.1274]
[1743689860629,1.12734,1774.4,1774.3,1.1274]
[1743689860832,2.81772,1774.8,1774.5,1.12724]
[1743689860833,3.21,1774.8,1774.5,1.12724]
[1743689861034,6.02773,1774.8,1774.4,4.3351]
[1743689861231,1.12724,1774.6,1774.5,1.12725]
[1743689861434,1.1272,1774.7,1774.3,6.02628]
[1743689861627,6.15595842,1775.1,1774.3,6.02628]
[1743689861628,6.1,1775.1,1774.6,3.2078]
[1743689861826,6.1,1775.1,1774.2,49.70921]
[1743689861827,3.5104,1775.0,1774.4,9.46512]
[1743689862034,3.5104,1775.0,1774.9,1.12702]
[1743689862228,1.12686,1775.2,1775.1,1.12689]
[1743689862530,2.81716,1775.2,1774.7,3.2078]
[1743689862736,1.12707,1774.9,1774.7,3.2078]
[1743689862928,1.12709,1774.8,1774.7,6.6469]
[1743689863231,2.81706,1775.3,1774.7,3.2078]
[1743689863427,2.81709,1775.2,1774.8,3.4391]
[1743689863627,1.12715,1774.7,1774.6,0.00845285]
[1743689863837,4.33495,1774.7,1774.6,0.00845285]
[1743689864131,6.83495,1774.7,1774.6,0.00845285]
[1743689864429,3.62715,1774.7,1774.6,0.00845285]
[1743689864629,2.8182,1774.5,1773.9,3.2078]
[1743689864829,6.02631,1774.3,1773.9,4.33541]
[1743689865034,1.12772,1773.8,1773.7,4.33557]
[1743689865234,3.2078,1773.9,1773.5,3.2078]
[1743689865433,3.2078,1774.3,1773.7,3.2078]
[1743689865632,1.12766,1773.9,1773.8,3.4387]
[1743689865834,1.1277,1773.9,1773.8,0.00845285]
[1743689866138,4.3355,1773.9,1773.8,0.00845285]
[1743689866337,1.12766,1773.9,1773.8,0.00845285]
[1743689866731,4.59601,1774.0,1773.9,1.12766]
[1743689866936,3.4684,1774.0,1773.9,1.12766]
[1743689867139,3.4684,1774.0,1773.9,4.50396]
[1743689867343,3.4684,1774.0,1773.8,0.00845285]
[1743689867528,1.12766,1773.9,1773.8,0.00845285]
[1743689869536,2.5,1773.9,1773.5,3.2078]
[1743689869739,3.395,1773.8,1773.6,1.12785]
[1743689869943,1.12785,1773.6,1773.5,3.3763]
[1743689870131,1.12797,1773.5,1773.4,1.12795]
[1743689870331,14.51813,1773.8,1773.3,3.2078]
[1743689870536,1.12798,1773.4,1773.3,4.33584]
[1743689870841,1.12798,1773.4,1773.3,44.0078]
[1743689871040,4.41825,1773.5,1773.4,1.12798]
[1743689871238,3.2078,1773.9,1773.3,47.5108]
[1743689871437,4.41801,1773.9,1773.8,1.12772]
[1743689871637,0.00837085,1774.2,1774.1,1.12753]
[1743689871831,1.13584085,1774.2,1774.1,1.12753]
[1743689872039,1.13584085,1774.2,1774.1,4.63053]
[1743689872242,0.00837085,1774.2,1774.1,45.43053]
[1743689872539,3.63584085,1774.2,1774.1,40.8]
[1743689872747,3.63584085,1774.2,1773.7,3.2078]
[1743689872748,1.12772,1773.8,1773.7,3.503]
[1743689872946,1.12795,1773.5,1773.3,6.09]
[1743689873134,1.12795,1773.5,1773.4,3.4335]
[1743689873339,1.12795,1773.5,1773.4,4.56148]
[1743689873542,4.38703,1773.7,1773.6,1.12785]
[1743689873740,4.38703,1773.7,1773.4,3.4335]
[1743689873741,1.12791,1773.5,1773.4,3.4335]
[1743689873939,3.2592,1773.7,1773.6,1.12785]
[1743689874239,5.096,1773.9,1773.7,1.12778]
[1743689874547,6.2237,1773.9,1773.8,1.12772]
[1743689874936,5.096,1773.9,1773.8,1.12772]
[1743689875250,1.12766,1773.9,1773.8,1.12772]
[1743689875441,1.12772,1773.8,1773.7,3.4335]
[1743689875634,1.12778,1773.7,1773.6,41.9278]
[1743689875840,1.12778,1773.7,1773.6,44.2335]
[1743689876040,1.12778,1773.7,1773.6,40.8]
[1743689876442,1.12785,1773.6,1773.5,3.2078]
[1743689876844,1.12785,1773.6,1773.5,4.33571]
[1743689877045,3.4553,1773.8,1773.7,1.12778]
[1743689877246,1.12768,1773.9,1773.8,1.12767]
[1743689877450,1.12772,1773.8,1773.7,4.33553]
[1743689877753,1.12772,1773.8,1773.7,1.12773]
[1743689878049,1.12781,1773.7,1773.6,1.1278]
[1743689878250,3.4553,1774.0,1773.5,46.82751]
[1743689878443,1.12785,1773.6,1773.5,45.13565]
[1743689878650,1.12784,1773.7,1773.6,1.12782]
[1743689879055,1.12785,1773.6,1773.5,45.13565]
[1743689879250,1.12785,1773.6,1773.5,40.8]
[1743689879444,1.12804,1773.3,1773.2,0.00845285]
[1743689879846,1.12804,1773.3,1773.2,40.80845285]
[1743689880041,4.62904,1773.3,1773.2,40.80845285]
[1743689880350,10.33684,1773.3,1773.2,40.80845285]
[1743689880553,1.12819,1773.1,1772.7,3.2078]
[1743689880855,9.52891,1773.3,1772.7,3.2078]
[1743689881048,6.7088,1773.3,1772.8,40.8]
[1743689881255,1.12818,1773.1,1773.0,1.12818]
[1743689881455,6.7088,1773.3,1772.8,40.8]
[1743689881756,1.12829,1772.9,1772.8,40.8]
[1743689881957,1.12829,1772.9,1772.8,41.92836]
[1743689882255,1.12829,1772.9,1772.8,40.8]
[1743689882453,4.36879,1772.9,1772.8,40.8]
[1743689882652,0.00845285,1773.2,1773.1,1.12817]
[1743689882852,0.00845285,1773.2,1773.1,4.33597]
[1743689883049,8.54405,1773.7,1773.1,4.33597]
[1743689883050,3.2078,1774.0,1773.1,5.7078]
[1743689883252,0.45326323,1774.3,1773.5,2.8197]
[1743689883253,3.2405,1774.1,1773.5,2.8197]
[1743689883452,3.2405,1774.1,1773.7,1.12776]
[1743689883453,1.12776,1773.8,1773.7,1.12776]
[1743689883657,1.12776,1773.8,1773.7,41.92776]
[1743689883858,4.3682,1773.9,1773.7,41.92776]
[1743689884152,2.87,1774.4,1773.8,3.2078]
[1743689884153,0.00845285,1774.0,1773.8,3.2078]
[1743689884358,0.00845285,1774.0,1773.7,40.8]
[1743689884560,1.12772,1773.8,1773.7,40.8]
[1743689885248,4.50332,1773.8,1773.7,40.8]
[1743689885444,3.3756,1773.8,1773.7,40.8]
[1743689885648,0.00845285,1774.0,1773.9,1.12766]
[1743689885847,0.00845285,1774.0,1773.9,4.33546]
[1743689886250,0.00845285,1774.0,1773.9,6.83546]
[1743689886450,0.00845285,1774.0,1773.9,4.33546]
[1743689887056,1.12756,1774.1,1774.0,1.12756]
[1743689887254,1.12753,1774.1,1773.9,4.33541]
[1743689887655,1.12753,1774.1,1774.0,1.12759]
[1743689888154,3.38397085,1774.2,1773.7,40.8]
[1743689888367,3.2078,1773.9,1773.6,0.00845285]
[1743689888654,2.81997,1773.4,1772.9,3.2078]
[1743689888961,1.12829,1772.9,1772.8,40.8]
[1743689889156,1.12844,1772.7,1772.5,1.12849]
[1743689889457,8.5976,1773.0,1772.5,3.2078]
[1743689889656,1.12837,1772.8,1772.5,40.8]
[1743689889858,1.13682285,1772.8,1772.5,40.8]
[1743689890153,1.12848,1772.6,1772.5,40.8]
[1743689890752,0.00845285,1772.8,1772.7,1.12842]
[1743689891253,0.00845285,1772.8,1772.5,40.8]
[1743689891458,1.12848,1772.6,1772.5,40.8]
[1743689891847,1.12848,1772.6,1772.4,0.00845285]
[1743689891848,8.48295285,1772.8,1772.4,0.00845285]
[1743689892162,5.10245285,1772.8,1772.4,0.00845285]
[1743689892457,3.38895285,1772.8,1772.5,40.8]
[1743689892661,0.00845285,1772.8,1772.7,4.33622]
[1743689893349,0.00845285,1772.8,1772.7,45.13622]
[1743689893556,3.3805,1773.3,1773.2,1.1281]
[1743689893749,3.2078,1773.7,1773.1,3.2078]
[1743689894054,3.2078,1773.7,1773.5,1.1279]
[1743689894055,4.33563,1773.7,1773.5,1.1279]
[1743689894253,1.12789,1773.6,1773.4,1.12795]
[1743689894457,3.2357,1773.6,1773.5,1.12791]
[1743689894655,6.05537,1773.6,1773.3,3.21625285]
[1743689894855,1.12798,1773.4,1773.3,0.00845285]
[1743689895061,3.2357,1773.6,1773.4,1.12796]
[1743689895363,1.12798,1773.4,1773.3,0.00845285]
[1743689895556,7.91497,1773.4,1772.7,3.2078]
[1743689895871,6.05585,1773.3,1772.8,1.12832]
[1743689896154,1.12829,1772.9,1772.8,3.3988]
[1743689896360,1.12829,1772.9,1772.7,3.2078]
[1743689896361,1.12853,1772.6,1772.4,6.1717]
[1743689896550,3.2357,1772.8,1772.4,6.6066]
[1743689896856,7.9156,1773.0,1772.4,6.6066]
[1743689896857,0.00845285,1772.7,1772.4,6.6066]
[1743689897250,0.00845285,1772.7,1772.6,1.12848]
[1743689897659,4.42322285,1772.7,1772.5,1.12853]
[1743689897858,3.29475285,1772.7,1772.3,0.00845285]
[1743689898058,1.12861,1772.4,1772.3,3.39535285]
[1743689898364,1.12861,1772.4,1772.3,0.00845285]
[1743689898658,1.12861,1772.4,1772.3,40.80845285]
[1743689898856,1.12861,1772.4,1772.3,0.00845285]
[1743689899061,3.62861,1772.4,1772.3,2.85e-06]
[1743689899261,6.91491,1772.4,1772.3,2.85e-06]
[1743689900762,1.1293,1771.4,1771.0,8.1214]
[1743689900959,1.1293,1771.4,1771.2,1.12936]
[1743689901155,5.095,1771.7,1771.3,0.11291142]
[1743689901368,1.12918,1771.5,1771.4,40.8]
[1743689901763,1.12925,1771.4,1771.3,0.11291142]
[1743689901952,4.51915,1771.4,1771.3,0.12136427]
[1743689902464,4.51915,1771.4,1771.3,40.92136427]
[1743689903065,3.21625285,1771.6,1771.3,42.05067427]
[1743689903066,1.12922,1771.5,1771.3,42.05067427]
[1743689903262,0.00845285,1771.6,1771.3,44.12916427]
[1743689903563,1.13762285,1771.6,1771.4,1.12921]
[1743689903755,0.00845285,1771.6,1771.4,4.66573]
[1743689903957,0.00845285,1771.6,1771.4,3.5365]
[1743689903958,1.12918,1771.5,1771.4,3.5365]
[1743689904458,0.00845285,1771.6,1771.3,45.25845427]
[1743689904459,1.12925,1771.4,1771.3,40.92136427]
[1743689904665,7.75965,1771.4,1771.3,40.92136427]
[1743689904858,1.1297,1770.7,1770.6,3.2078]
[1743689905062,9.1304,1771.4,1770.6,1.12972]
[1743689905063,1.12966,1770.8,1770.6,1.12972]
[1743689905363,3.2078,1771.1,1770.7,6.7443]
[1743689905557,1.12953,1771.0,1770.8,1.12959]
[1743689905758,6.03088,1771.5,1770.9,3.5365]
[1743689906060,1.13761285,1771.6,1771.4,1.12925]
[1743689906263,0.00845285,1771.6,1771.2,3.5365]
[1743689906457,0.00845285,1771.6,1771.3,4.3371]
[1743689906458,1.12923,1771.5,1771.3,4.3371]
[1743689906661,0.00845285,1771.6,1771.5,1.12918]
[1743689907060,0.00845285,1771.6,1771.5,6.83698]
[1743689907462,2.85e-06,1771.6,1771.5,6.83698]
[1743689907658,1.12876,1772.2,1772.0,1.12882]
[1743689907855,1.1288,1772.1,1772.0,3.2078]
[1743689908054,1.12896,1771.9,1771.8,1.12899]
[1743689908262,1.12889,1772.0,1771.8,1.12899]
[1743689908460,3.5663,1772.3,1771.9,44.3622]
[1743689908767,1.12887,1772.0,1771.9,40.80845285]
[1743689909066,4.33667,1772.0,1771.9,0.00845285]
[1743689909564,1.12887,1772.0,1771.9,40.80845285]
[1743689910160,1.12887,1772.0,1771.9,0.00845285]
[1743689910462,6.22687,1772.0,1771.9,0.00845285]
[1743689910766,1.12954,1771.0,1770.7,5.098]
[1743689910967,1.12944,1771.1,1771.0,1.12945]
[1743689911154,5.645,1771.8,1771.1,1.12941]
[1743689911155,1.12937,1771.3,1771.1,1.12941]
[1743689911359,1.12927,1771.4,1771.0,44.0078]
[1743689911563,1.12936,1771.3,1771.1,1.12941]
[1743689911967,0.00845285,1771.4,1771.2,1.12937]
[1743689912163,0.00845285,1771.4,1771.1,3.5059]
[1743689912465,1.12938,1771.2,1771.1,3.5059]
[1743689912667,1.12936,1771.3,1771.1,4.63534]
[1743689912868,3.24135285,1771.4,1771.2,3.5216]
[1743689913172,1.12931,1771.3,1771.2,3.5216]
[1743689914064,3.24135285,1771.4,1771.0,45.14570285]
[1743689914264,1.12938,1771.2,1771.1,3.5216]
[1743689914467,3.24135285,1771.4,1771.1,3.5216]
[1743689914468,0.00845285,1771.4,1771.1,3.5216]
[1743689914771,1.12938,1771.2,1771.1,4.65099]
[1743689914969,3.57465285,1771.4,1771.1,3.5216]
[1743689915158,1.12934,1771.3,1771.2,3.5216]
[1743689915572,1.12934,1771.3,1771.2,4.65098]
[1743689915871,1.12944,1771.1,1771.0,44.01625285]
[1743689916071,1.12944,1771.1,1771.0,40.80845285]
[1743689916262,4.33724,1771.1,1771.0,40.80845285]
[1743689916468,1.12944,1771.1,1771.0,0.00845285]
[1743689916765,0.00845285,1771.4,1771.0,5.71625285]
[1743689917072,1.13770285,1771.4,1771.3,1.12931]
[1743689917271,1.13770285,1771.4,1771.1,3.4944]
[1743689917272,0.00845285,1771.4,1771.1,3.4944]
[1743689917768,1.12938,1771.2,1771.1,3.4944]
[1743689918265,1.12944,1771.1,1771.0,3.21625285]
[1743689918468,1.12944,1771.1,1771.0,44.01625285]
[1743689918867,1.12944,1771.1,1771.0,45.14575285]
[1743689919364,1.12944,1771.1,1771.0,44.01625285]
[1743689919564,1.12944,1771.1,1771.0,40.80845285]
[1743689919774,2.82415,1770.8,1770.2,3.2078]
[1743689920073,2.82415,1770.8,1770.3,3.5156]
[1743689920266,1.12989,1770.4,1770.3,4.64552]
[1743689920668,1.12989,1770.4,1770.3,3.5156]
[1743689920863,6.37727,1770.7,1770.3,45.44555]
[1743689921171,3.553,1770.7,1770.4,3.2078]
[1743689921371,1.12971,1770.7,1770.6,1.12973]
[1743689921571,1.12966,1770.8,1770.7,1.1297]
[1743689921771,1.1297,1770.7,1770.6,1.12973]
[1743689921969,1.12976,1770.6,1770.5,3.5156]
[1743689923269,1.12976,1770.6,1770.3,44.0078]
[1743689923270,1.12989,1770.4,1770.3,45.13773]
[1743689923669,1.12989,1770.4,1770.3,44.0078]
[1743689924077,1.12995,1770.3,1770.2,0.00845285]
[1743689924270,15.61715,1770.3,1770.2,0.00845285]
[1743689924578,20.96725,1770.3,1770.2,2.85e-06]
[1743689928683,15.86925,1770.3,1770.2,2.85e-06]
[1743689928979,7.63335,1770.3,1770.2,2.85e-06]
[1743689929176,4.42555,1770.3,1770.2,1.13001285]
[1743689929380,4.42555,1770.3,1770.2,2.85e-06]
[1743689929581,4.42555,1770.3,1770.2,40.80000285]
[1743689929780,4.42555,1770.3,1770.2,44.19300285]
[1743689930680,7.63335,1770.3,1770.2,40.80000285]
[1743689930879,7.63335,1770.3,1770.2,2.85e-06]
[1743689931478,7.63335,1770.3,1770.2,1.13001285]
[1743689931479,4.42555,1770.3,1770.2,1.13001285]
[1743689931779,6.23638285,1770.4,1770.2,44.00780285]
[1743689931985,0.00845285,1770.4,1770.3,7.78565]
[1743689932185,1.13834285,1770.4,1770.3,3.4479]
[1743689932480,1.13834285,1770.4,1770.2,40.80000285]
[1743689932481,1.12995,1770.3,1770.2,40.80000285]
[1743689932681,4.43385,1770.3,1770.2,40.80000285]
[1743689932878,0.00845285,1770.4,1770.3,1.12995]
[1743689932879,1.13836285,1770.4,1770.3,1.12995]
[1743689933080,0.00845285,1770.4,1770.3,4.57785]
[1743689933275,1.13834285,1770.4,1770.3,3.4479]
[1743689934383,1.13834285,1770.4,1770.3,4.57785]
[1743689934687,0.00845285,1770.4,1770.3,4.57785]
[1743689935485,0.00845285,1770.4,1770.3,7.78565]
[1743689935985,1.1298,1770.6,1770.5,1.12979]
[1743689935986,1.12982,1770.6,1770.5,1.12979]
[1743689936186,1.12974,1770.7,1770.6,1.12972]
[1743689936389,3.5311,1770.8,1770.4,6.23759]
[1743689936586,3.5311,1770.8,1770.6,1.1297]
[1743689936587,1.12972,1770.7,1770.6,1.1297]
[1743689936986,4.66076,1770.8,1770.7,1.1297]
[1743689937304,3.53955285,1770.8,1770.5,3.2078]
[1743689937589,1.12976,1770.6,1770.5,4.61042]
[1743689938486,1.12974,1770.7,1770.6,1.12972]
[1743689939201,1.12976,1770.6,1770.5,4.61042]
[1743689939398,1.12976,1770.6,1770.5,3.4806]
[1743689940394,1.12995,1770.3,1770.2,2.85e-06]
[1743689940801,1.12993,1770.4,1770.3,1.12991]
[1743689941502,1.12993,1770.4,1770.3,3.3304]
[1743689942400,5.097,1770.7,1770.3,3.3304]
[1743689942603,1.12989,1770.4,1770.3,7.66812]
[1743689942798,1.12989,1770.4,1770.3,3.3304]
[1743689943303,0.00845285,1770.8,1770.4,2.82472]
[1743689943599,1.13810285,1770.8,1770.7,1.1297]
[1743689943894,2.83263285,1770.8,1770.4,3.2078]
[1743689944102,1.12989,1770.5,1770.4,1.12989]
[1743689944298,1.12979,1770.6,1770.5,1.12976]
[1743689944605,1.12972,1770.7,1770.6,1.1297]
[1743689944799,1.13812285,1770.8,1770.7,1.1297]
[1743689945004,1.13808285,1770.8,1770.7,1.1297]
[1743689945204,0.00845285,1770.8,1770.7,1.1297]
[1743689945401,7.9009,1771.2,1770.7,10.3624]
[1743689945597,2.82373,1771.1,1770.7,6.7327]
[1743689945895,1.12986,1770.5,1770.4,1.1298]
[1743689946202,1.12981,1770.6,1770.5,1.12982]
[1743689946396,1.1298,1770.6,1770.5,1.12977]
[1743689946596,1.1298,1770.6,1770.2,3.20780285]
[1743689946906,4.38829,1770.5,1770.4,1.12989]
[1743689948198,1.12992,1770.4,1770.3,1.1299]
[1743689948701,1.12995,1770.3,1770.2,4.33781285]
[1743689948896,3.2584,1770.3,1770.2,4.33781285]
[1743689949204,1.13820285,1770.7,1770.6,1.12976]
[1743689949405,1.12979,1770.6,1770.5,1.12976]
[1743689949605,5.624,1771.0,1770.5,1.12976]
[1743689949606,6.03062,1771.6,1770.5,3.2078]
[1743689949796,19.6471401,1771.7,1771.6,1.12912]
[1743689949797,23.8583501,1771.7,1771.6,1.12912]
[1743689950002,1.12917,1771.6,1771.5,1.12917]
[1743689950199,22.7292401,1771.7,1771.5,41.92917]
[1743689950400,20.7762501,1771.7,1771.6,1.12912]
[1743689950603,19.6471401,1771.7,1771.5,41.92914]
[1743689950902,1.12912,1771.6,1771.5,40.80845285]
[1743689951098,1.12931,1771.3,1771.2,3.2078]
[1743689951299,1.12957,1770.9,1770.8,3.2078]
[1743689951606,2.82418,1770.8,1770.4,1.12987]
[1743689951800,3.2078,1770.7,1770.2,3.2078]
[1743689952099,2.8233,1771.3,1770.6,3.2078]
[1743689952301,1.1296,1770.9,1770.8,3.2078]
[1743689952505,1.1296,1770.9,1770.4,5.093]
[1743689952506,1.1297,1770.7,1770.6,4.33754]
[1743689952708,6.03145,1771.1,1770.6,4.33754]
[1743689952709,4.50303,1770.8,1770.7,1.1297]
[1743689952904,6.22254,1771.0,1770.9,1.12957]
[1743689953102,8.4664,1771.0,1770.9,1.12957]
[1743689953299,1.12957,1770.9,1770.8,4.33741]
[1743689953500,5.093,1771.0,1770.9,1.12957]
[1743689953902,0.00845285,1771.1,1771.0,1.1295]
[1743689954208,0.00845285,1771.1,1771.0,4.3373]
[1743689954409,0.00845285,1771.1,1771.0,6.8373]
[1743689954603,0.00845285,1771.1,1771.0,47.6373]
[1743689954909,1.12919,1771.5,1771.4,1.12925]
[1743689955113,1.12919,1771.5,1771.4,4.33705]
[1743689955301,4.50259,1771.5,1771.4,3.2078]
[1743689955504,3.3734,1771.5,1771.4,4.33705]
[1743689955706,19.6471401,1771.7,1771.6,1.12912]
[1743689956008,20.7762001,1771.7,1771.6,3.2078]
[1743689956306,23.2140401,1771.7,1771.6,4.33692]
[1743689956508,19.6471401,1771.7,1771.6,4.33692]
[1743689957403,18.4965601,1771.7,1771.6,6.83692]
[1743689957608,13.1306415,1771.7,1771.6,6.83692]
[1743689957805,0.00845285,1771.8,1771.7,1.12906]
[1743689958210,0.00845285,1771.8,1771.7,3.62906]
[1743689958410,0.00845285,1771.8,1771.7,44.42906]
[1743689958912,0.00845285,1771.8,1771.7,41.92906]
[1743689959110,0.00845285,1771.8,1771.7,49.52006]
[1743689960204,2.85e-06,1771.8,1771.7,49.52006]
[1743689960615,13.1306415,1772.4,1772.3,1.12868]
[1743689960819,13.1306415,1772.4,1772.3,4.33648]
[1743689961313,11.8013915,1772.4,1772.3,47.63648]
[1743689961613,7.8482815,1772.4,1772.3,47.63648]
[1743689961907,6.7081715,1772.4,1772.3,47.63648]
[1743689962114,0.00845285,1772.5,1772.4,1.12861]
[1743689962706,1.12861,1772.4,1772.3,0.00845285]
[1743689962906,1.12885,1772.1,1771.9,1.1289]
[1743689963101,3.5104,1772.0,1771.9,1.1289]
[1743689963906,3.5104,1772.0,1771.7,6.5633]
[1743689964112,3.5104,1772.0,1771.8,1.13739285]
[1743689964410,3.5104,1772.0,1771.8,0.00845285]
[1743689964411,1.12893,1771.9,1771.8,0.00845285]
[1743689965611,1.12893,1771.9,1771.8,1.13744285]
[1743689965817,3.5104,1772.0,1771.8,1.13741285]
[1743689966212,3.5104,1772.0,1771.9,1.12893]
[1743689966711,4.6393,1772.0,1771.8,3.21625285]
[1743689966912,4.6393,1772.0,1771.9,1.12893]
[1743689967212,3.5104,1772.0,1771.9,1.12893]
[1743689967413,4.11979,1772.2,1772.1,1.1288]
[1743689967613,3.5203,1772.1,1772.0,1.12887]
[1743689968214,3.5203,1772.1,1772.0,4.33667]
[1743689970225,2.8487,1772.3,1772.2,1.12874]
[1743689970522,3.2078,1772.4,1772.3,1.12868]
[1743689970719,0.00845285,1772.5,1772.3,1.12868]
[1743689970919,1.13704285,1772.5,1772.4,1.12861]
[1743689971624,4.43824285,1772.5,1772.4,1.12861]
[1743689972117,1.12868,1772.3,1772.2,40.8]
[1743689972317,8.2938,1772.3,1771.2,3.2078]
[1743689972524,1.1293,1771.4,1771.0,6.19225]
[1743689972727,3.3012,1771.3,1771.2,1.12933]
[1743689973022,1.12938,1771.2,1771.1,44.0078]
[1743689973226,4.43056,1771.3,1771.1,45.13722]
[1743689973417,3.3012,1771.3,1771.1,44.0078]
[1743689973611,3.3012,1771.3,1771.2,1.12938]
[1743689973931,3.3012,1771.3,1771.2,4.65508]
[1743689974112,0.00845285,1771.4,1771.3,1.12931]
[1743689974318,0.00845285,1771.4,1771.3,4.33711]
[1743689974521,4.33664,1772.1,1771.6,2.8228]
[1743689974818,3.3963,1771.8,1771.7,4.65476]
[1743689975321,3.3963,1771.8,1771.7,7.86256]
[1743689975520,2.8808,1772.1,1772.0,1.12887]
[1743689975724,1.12874,1772.2,1772.1,1.12875]
[1743689975924,1.12874,1772.2,1772.1,1.1288]
[1743689976229,1.13719285,1772.2,1772.1,40.8]
[1743689976714,4.53349285,1772.2,1772.1,40.8]
[1743689976911,1.1288,1772.1,1772.0,0.00845285]
[1743689977119,4.5038,1772.1,1772.0,1.13732285]
[1743689977319,4.5038,1772.1,1772.0,0.00845285]
[1743689977519,4.5038,1772.1,1772.0,1.13732285]
[1743689977723,4.5038,1772.1,1772.0,0.00845285]
[1743689978022,3.375,1772.1,1772.0,1.13732285]
[1743689978323,3.375,1772.1,1772.0,4.34512285]
[1743689978524,3.375,1772.1,1772.0,41.93732285]
[1743689979322,4.5038,1772.1,1772.0,41.93732285]
[1743689979528,3.375,1772.1,1772.0,41.93732285]
[1743689980130,3.375,1772.1,1772.0,45.14512285]
[1743689981024,0.00845285,1772.2,1772.1,1.1288]
[1743689981223,0.00845285,1772.2,1772.1,4.4171]
[1743689982126,0.00845285,1772.2,1772.1,6.9171]
[1743689982520,0.00845285,1772.2,1772.1,45.2171]
[1743689984130,1.1285,1772.6,1772.5,1.12855]
[1743689984426,4.519,1772.6,1772.5,1.12855]
[1743689984928,3.3905,1772.6,1772.5,1.12855]
[1743689985328,3.0263,1772.8,1772.7,1.12842]
[1743689985530,9.60073,1773.0,1772.9,1.12829]
[1743689985726,3.3905,1773.0,1772.9,1.12829]
[1743689986126,3.3905,1773.0,1772.9,4.33609]
[1743689986332,3.3905,1773.0,1772.9,7.79489]
[1743689986630,0.00845285,1773.1,1773.0,1.12823]
[1743689986830,0.00845285,1773.1,1773.0,4.58703]
[1743689987023,2.85e-06,1773.1,1773.0,47.88703]
[1743689987423,2.85e-06,1773.1,1773.0,52.96903]
[1743689987637,2.85e-06,1773.1,1773.0,50.46903]
[1743689988022,2.85e-06,1773.1,1773.0,40.8]
[1743689988234,2.85e-06,1773.1,1773.0,1.12823]
[1743689988425,3.96002285,1773.1,1773.0,1.12823]
[1743689989234,2.83180285,1773.1,1773.0,1.12823]
[1743689989543,3.95997285,1773.1,1773.0,1.12823]
[1743689990539,2.85e-06,1773.1,1773.0,1.12823]
[1743689990835,2.85e-06,1773.1,1773.0,4.63503]
[1743689991031,2.85e-06,1773.1,1773.0,1.12823]
[1743689991236,1.12817285,1773.1,1773.0,1.12823]
[1743689991436,2.85e-06,1773.1,1773.0,1.12823]
[1743689991635,3.35500285,1773.1,1773.0,1.12823]
[1743689992039,3.35500285,1773.1,1773.0,4.50583]
[1743689992434,2.85e-06,1773.1,1773.0,4.50583]
[1743689992943,2.85e-06,1773.1,1773.0,7.00583]
[1743689994337,2.85e-06,1773.1,1773.0,7.45439961]
[1743689998137,2.85e-06,1773.1,1773.0,4.50583]
[1743689999445,2.85e-06,1773.1,1773.0,1.12823]
[1743689999743,2.85e-06,1773.1,1773.0,4.43623]
[1743690000140,2.85e-06,1773.1,1772.7,40.8]
[1743690000141,5.70780285,1773.1,1772.7,40.8]
[1743690000349,6.17991,1773.0,1772.3,3.2078]
[1743690000641,3.0449,1772.9,1772.8,1.12836]
[1743690000941,5.07500285,1773.1,1772.8,1.12836]
[1743690000942,2.85e-06,1773.1,1773.0,1.12823]
[1743690001143,2.85e-06,1773.1,1772.8,43.62087]
[1743690001144,2.85e-06,1773.1,1772.9,1.12825]
[1743690001339,2.85e-06,1773.1,1772.8,40.8]
[1743690001539,2.85e-06,1773.1,1773.0,1.12823]
[1743690001745,1.12829,1772.9,1772.8,44.0078]
[1743690002238,3.3853,1773.0,1772.9,1.12829]
[1743690002744,7.01355,1773.0,1772.9,1.12829]
[1743690003041,1.12829,1772.9,1772.8,40.8]
[1743690003246,6.4047,1772.9,1772.8,41.92836]
[1743690003639,3.3853,1772.9,1772.8,41.92836]
[1743690003840,4.51359,1772.9,1772.8,40.8]
[1743690004048,3.3853,1772.9,1772.8,41.92836]
[1743690004343,3.3853,1772.9,1772.8,45.13616]
[1743690004547,2.85e-06,1773.1,1773.0,1.12823]
[1743690004743,2.85e-06,1773.1,1773.0,4.33603]
[1743690005146,2.7824,1773.6,1773.5,1.12791]
[1743690005451,6.0178,1773.6,1773.5,4.33571]
[1743690005648,6.0178,1773.6,1773.5,1.12791]
[1743690006242,6.0178,1773.6,1773.2,6.31951]
[1743690006243,2.81979,1773.5,1773.2,3.2078]